[Event "Early-Titled-Tuesday-Blitz-October-17-2023"]
[Site "Chess.com"]
[Date "2023.10.17"]
[Round "7"]
[White "Susal_De_Silva"]
[Black "Ural_bogatyr"]
[Result "0-1"]
[WhiteElo "2660"]
[BlackElo "2544"]
[TimeControl "180+1"]
[EndTime "9:21:15 PDT"]
[Termination "Ural_bogatyr won by resignation"]

1. Nf3 {[%clk 0:02:53.1]} 1... d5 {[%clk 0:02:59.4]} 2. e3 {[%clk 0:02:52]} 2...
Nf6 {[%clk 0:02:58.9]} 3. c4 {[%clk 0:02:52]} 3... e6 {[%clk 0:02:58.8]} 4. b3
{[%clk 0:02:52.2]} 4... c5 {[%clk 0:02:58.4]} 5. Bb2 {[%clk 0:02:52]} 5... Nc6
{[%clk 0:02:57.5]} 6. Nc3 {[%clk 0:02:51.4]} 6... d4 {[%clk 0:02:44]} 7. exd4
{[%clk 0:02:49.6]} 7... cxd4 {[%clk 0:02:44.9]} 8. Ne2 {[%clk 0:02:50.2]} 8...
e5 {[%clk 0:02:43.6]} 9. d3 {[%clk 0:02:50.7]} 9... Bg4 {[%clk 0:02:40.7]} 10.
Ng3 {[%clk 0:02:50.6]} 10... Bb4+ {[%clk 0:02:37.7]} 11. Ke2 {[%clk 0:02:49.9]}
11... O-O {[%clk 0:02:37.8]} 12. h3 {[%clk 0:02:50]} 12... Bh5 {[%clk
0:02:24.6]} 13. a3 {[%clk 0:02:47.9]} 13... Bc3 {[%clk 0:02:18.9]} 14. Qc1
{[%clk 0:02:34.1]} 14... Bxb2 {[%clk 0:01:52.3]} 15. Qxb2 {[%clk 0:02:32.9]}
15... Bg6 {[%clk 0:01:52.4]} 16. Nd2 {[%clk 0:02:30.2]} 16... Nh5 {[%clk
0:01:46]} 17. Kd1 {[%clk 0:02:17.3]} 17... Nf4 {[%clk 0:01:34.2]} 18. Qc2 {[%clk
0:02:11.7]} 18... a5 {[%clk 0:01:12.1]} 19. Nf3 {[%clk 0:02:09.5]} 19... f5
{[%clk 0:01:03.1]} 20. Qd2 {[%clk 0:02:08.4]} 20... Qd6 {[%clk 0:00:52.3]} 21.
Ne2 {[%clk 0:02:04.9]} 21... Nxe2 {[%clk 0:00:46.9]} 22. Bxe2 {[%clk 0:02:05.8]}
22... e4 {[%clk 0:00:43.4]} 23. Nh4 {[%clk 0:02:05.3]} 23... Be8 {[%clk
0:00:42.4]} 24. g4 {[%clk 0:02:01.7]} 24... f4 {[%clk 0:00:36.7]} 25. dxe4
{[%clk 0:01:59]} 25... d3 {[%clk 0:00:36.6]} 26. Qxd3 {[%clk 0:01:46.2]} 26...
Qf6 {[%clk 0:00:36.3]} 27. e5 {[%clk 0:01:33.1]} 27... Qxh4 {[%clk 0:00:28.6]}
28. Qd5+ {[%clk 0:01:31]} 28... Bf7 {[%clk 0:00:26.6]} 29. e6 {[%clk 0:01:29.4]}
29... Rad8 {[%clk 0:00:22.4]} 30. exf7+ {[%clk 0:01:30.3]} 30... Rxf7 {[%clk
0:00:19.6]} 31. Bf3 {[%clk 0:01:31.2]} 31... Kf8 {[%clk 0:00:14.7]} 32. Ke2
{[%clk 0:01:29.8]} 32... Rxd5 {[%clk 0:00:13.9]} 33. Bxd5 {[%clk 0:01:30]} 33...
Re7+ {[%clk 0:00:14.1]} 34. Kf1 {[%clk 0:01:27.2]} 34... Ne5 {[%clk 0:00:12.3]}
35. Kg2 {[%clk 0:01:24]} 35... f3+ {[%clk 0:00:12.2]} 36. Kg1 {[%clk 0:01:24]}
36... Nd3 {[%clk 0:00:12.2]} 37. Rh2 {[%clk 0:01:23.8]} 37... Qf6 {[%clk
0:00:10.2]} 38. Rf1 {[%clk 0:01:23.5]} 38... Qf4 {[%clk 0:00:07.9]} 39. Rh1
{[%clk 0:00:51]} 39... Re1 {[%clk 0:00:07.3]} 40. Rxe1 {[%clk 0:00:51.5]} 40...
Nxe1 {[%clk 0:00:08.2]} 41. b4 {[%clk 0:00:50.9]} 41... Nd3 {[%clk 0:00:08.6]}
42. bxa5 {[%clk 0:00:49.7]} 42... Nc5 {[%clk 0:00:07.1]} 43. a4 {[%clk
0:00:44.5]} 43... Ke7 {[%clk 0:00:05.8]} 44. Bg8 {[%clk 0:00:41.5]} 44... h5
{[%clk 0:00:05.2]} 45. gxh5 {[%clk 0:00:41.6]} 45... Qg5+ {[%clk 0:00:05.2]} 0-1

[Event "Early-Titled-Tuesday-Blitz-October-17-2023"]
[Site "Chess.com"]
[Date "2023.10.17"]
[Round "7"]
[White "Hambardzumyan_Yuri"]
[Black "DTChess"]
[Result "0-1"]
[WhiteElo "2355"]
[BlackElo "2586"]
[TimeControl "180+1"]
[EndTime "9:21:16 PDT"]
[Termination "DTChess won on time"]

1. e4 {[%clk 0:03:00.9]} 1... e5 {[%clk 0:02:56.9]} 2. Nf3 {[%clk 0:03:01]} 2...
Nc6 {[%clk 0:02:56.1]} 3. Nc3 {[%clk 0:03:01.6]} 3... g6 {[%clk 0:02:56]} 4. d4
{[%clk 0:03:01.4]} 4... exd4 {[%clk 0:02:55.8]} 5. Nxd4 {[%clk 0:03:02.3]} 5...
Bg7 {[%clk 0:02:56.3]} 6. Be3 {[%clk 0:03:01.7]} 6... Nge7 {[%clk 0:02:56]} 7.
Qd2 {[%clk 0:02:58.7]} 7... O-O {[%clk 0:02:55.9]} 8. O-O-O {[%clk 0:02:53.2]}
8... d5 {[%clk 0:02:56]} 9. exd5 {[%clk 0:02:52.3]} 9... Nxd5 {[%clk 0:02:47.7]}
10. Nxc6 {[%clk 0:02:48.9]} 10... bxc6 {[%clk 0:02:47.8]} 11. Nxd5 {[%clk
0:02:47.1]} 11... cxd5 {[%clk 0:02:47.3]} 12. Qxd5 {[%clk 0:02:44.7]} 12... Be6
{[%clk 0:02:37.9]} 13. Qxd8 {[%clk 0:02:39.7]} 13... Rfxd8 {[%clk 0:02:37.2]}
14. Ba6 {[%clk 0:02:03.9]} 14... Rd6 {[%clk 0:02:09]} 15. Rxd6 {[%clk
0:01:35.5]} 15... cxd6 {[%clk 0:02:08.6]} 16. Rd1 {[%clk 0:01:33.3]} 16... d5
{[%clk 0:02:08.6]} 17. Bd4 {[%clk 0:01:31.4]} 17... Bh6+ {[%clk 0:02:01.8]} 18.
Be3 {[%clk 0:01:29.3]} 18... Bg7 {[%clk 0:02:00.9]} 19. c3 {[%clk 0:01:26.7]}
19... Rb8 {[%clk 0:01:55.6]} 20. Bd4 {[%clk 0:01:23.2]} 20... Bh6+ {[%clk
0:01:54.7]} 21. Kc2 {[%clk 0:01:23.5]} 21... Bf4 {[%clk 0:01:50]} 22. g3 {[%clk
0:01:16.8]} 22... Bc7 {[%clk 0:01:49.5]} 23. b4 {[%clk 0:01:10.8]} 23... Bb6
{[%clk 0:01:47.8]} 24. a4 {[%clk 0:01:06.7]} 24... h5 {[%clk 0:01:42.8]} 25. a5
{[%clk 0:01:02.7]} 25... Bxd4 {[%clk 0:01:42.7]} 26. Rxd4 {[%clk 0:01:03.6]}
26... Kf8 {[%clk 0:01:42.3]} 27. b5 {[%clk 0:00:55.2]} 27... Ke7 {[%clk
0:01:40.8]} 28. Rb4 {[%clk 0:00:54.3]} 28... Kd6 {[%clk 0:01:40.2]} 29. Kd3
{[%clk 0:00:50.6]} 29... Kc5 {[%clk 0:01:38.7]} 30. Ke3 {[%clk 0:00:31.6]} 30...
g5 {[%clk 0:01:34.1]} 31. h4 {[%clk 0:00:30.5]} 31... f6 {[%clk 0:01:33.7]} 32.
Rb1 {[%clk 0:00:15.6]} 32... Bd7 {[%clk 0:01:26.3]} 33. hxg5 {[%clk 0:00:14]}
33... fxg5 {[%clk 0:01:26.4]} 34. Kd2 {[%clk 0:00:12.8]} 34... h4 {[%clk
0:01:23.3]} 35. gxh4 {[%clk 0:00:11.7]} 35... gxh4 {[%clk 0:01:24.2]} 36. Rh1
{[%clk 0:00:12.1]} 36... h3 {[%clk 0:01:24.7]} 37. f4 {[%clk 0:00:11.7]} 37...
Rg8 {[%clk 0:01:21.6]} 38. Ke3 {[%clk 0:00:08.3]} 38... Rg3+ {[%clk 0:01:20.3]}
39. Kf2 {[%clk 0:00:08.2]} 39... Rxc3 {[%clk 0:01:20.5]} 40. Rg1 {[%clk
0:00:03.5]} 40... Bf5 {[%clk 0:01:16.1]} 41. Rh1 {[%clk 0:00:03.1]} 41... Be4
{[%clk 0:01:15.4]} 42. Rh2 {[%clk 0:00:02.7]} 42... Bf5 {[%clk 0:01:11.9]} 43.
Rh1 {[%clk 0:00:02.7]} 43... d4 {[%clk 0:01:12.4]} 44. Rh2 {[%clk 0:00:02.9]}
44... Be4 {[%clk 0:01:08.8]} 45. Bc8 {[%clk 0:00:01.8]} 45... Rf3+ {[%clk
0:01:08.2]} 46. Ke2 {[%clk 0:00:02.1]} 46... Re3+ {[%clk 0:01:08.3]} 47. Kd2
{[%clk 0:00:02.4]} 47... Bg2 {[%clk 0:01:08.6]} 48. f5 {[%clk 0:00:02.3]} 48...
Kd6 {[%clk 0:01:06.7]} 49. f6 {[%clk 0:00:02.6]} 49... Rb3 {[%clk 0:01:03.9]}
50. b6 {[%clk 0:00:02.7]} 50... axb6 {[%clk 0:01:04]} 51. a6 {[%clk 0:00:03.3]}
51... Ra3 {[%clk 0:01:03.7]} 52. Bb7 {[%clk 0:00:02.4]} 52... Ke6 {[%clk
0:00:57.4]} 53. Kc2 {[%clk 0:00:01.9]} 53... d3+ {[%clk 0:00:57.2]} 54. Kb2
{[%clk 0:00:02.2]} 54... d2 {[%clk 0:00:57.5]} 55. Rh1 {[%clk 0:00:01.2]} 55...
Bxh1 {[%clk 0:00:57.4]} 56. f7 {[%clk 0:00:01.1]} 56... Kxf7 {[%clk 0:00:57.4]}
0-1

[Event "Early-Titled-Tuesday-Blitz-October-17-2023"]
[Site "Chess.com"]
[Date "2023.10.17"]
[Round "7"]
[White "destruyeabuelitas"]
[Black "MerryPoppies"]
[Result "1-0"]
[WhiteElo "2360"]
[BlackElo "2138"]
[TimeControl "180+1"]
[EndTime "9:21:17 PDT"]
[Termination "destruyeabuelitas won by resignation"]

1. e4 {[%clk 0:03:00.9]} 1... e5 {[%clk 0:02:59.9]} 2. Nf3 {[%clk 0:03:00.3]}
2... Nc6 {[%clk 0:02:59.9]} 3. Bc4 {[%clk 0:02:57]} 3... Bc5 {[%clk 0:02:59.7]}
4. c3 {[%clk 0:02:56]} 4... Nf6 {[%clk 0:02:59.3]} 5. d4 {[%clk 0:02:55.2]} 5...
exd4 {[%clk 0:02:58.2]} 6. e5 {[%clk 0:02:55.4]} 6... d5 {[%clk 0:02:53.8]} 7.
Bb5 {[%clk 0:02:54.5]} 7... Ne4 {[%clk 0:02:53.8]} 8. cxd4 {[%clk 0:02:54.4]}
8... Bb4+ {[%clk 0:02:41.5]} 9. Kf1 {[%clk 0:02:52.3]} 9... O-O {[%clk
0:02:38.4]} 10. Qa4 {[%clk 0:02:49.1]} 10... a5 {[%clk 0:02:21.1]} 11. a3 {[%clk
0:02:43.7]} 11... Be7 {[%clk 0:02:15.6]} 12. Be3 {[%clk 0:02:42.2]} 12... Bg4
{[%clk 0:02:10.4]} 13. Nbd2 {[%clk 0:02:41.3]} 13... f6 {[%clk 0:02:04.8]} 14.
Bxc6 {[%clk 0:02:14.2]} 14... Nxd2+ {[%clk 0:01:55.7]} 15. Nxd2 {[%clk 0:02:12]}
15... bxc6 {[%clk 0:01:55.8]} 16. Qxc6 {[%clk 0:02:00.6]} 16... fxe5 {[%clk
0:01:55.9]} 17. dxe5 {[%clk 0:01:58.8]} 17... Rb8 {[%clk 0:01:40.2]} 18. b3
{[%clk 0:01:45.2]} 18... Kh8 {[%clk 0:01:40.1]} 19. Bd4 {[%clk 0:01:39]} 19...
Bg5 {[%clk 0:01:31.2]} 20. Qc2 {[%clk 0:01:30.1]} 20... Bxd2 {[%clk 0:01:24.4]}
21. Qxd2 {[%clk 0:01:28.9]} 21... Rxb3 {[%clk 0:01:24.4]} 22. h3 {[%clk
0:01:26.4]} 22... Bh5 {[%clk 0:01:16.6]} 23. Rc1 {[%clk 0:01:22.2]} 23... Qb8
{[%clk 0:01:00.7]} 24. Qxa5 {[%clk 0:01:15.3]} 24... Rb1 {[%clk 0:00:56.8]} 25.
Qe1 {[%clk 0:01:12.9]} 25... Qb5+ {[%clk 0:00:49.9]} 26. Kg1 {[%clk 0:01:11.3]}
26... Rxc1 {[%clk 0:00:45.5]} 27. Qxc1 {[%clk 0:01:10.8]} 27... Qe2 {[%clk
0:00:43.9]} 28. Kh2 {[%clk 0:01:02.3]} 28... Qe4 {[%clk 0:00:37.9]} 29. Qe3
{[%clk 0:01:00.5]} 29... Qf5 {[%clk 0:00:33.3]} 30. e6 {[%clk 0:00:59.9]} 30...
Re8 {[%clk 0:00:33.1]} 31. e7 {[%clk 0:00:59.8]} 31... Bf7 {[%clk 0:00:30]} 32.
Re1 {[%clk 0:00:59.2]} 32... Qd7 {[%clk 0:00:26.7]} 33. Qe5 {[%clk 0:00:59.2]}
33... Qd6 {[%clk 0:00:23]} 34. Qxd6 {[%clk 0:00:57.7]} 34... cxd6 {[%clk
0:00:23.7]} 35. a4 {[%clk 0:00:54.6]} 35... Kg8 {[%clk 0:00:20.4]} 36. a5 {[%clk
0:00:54.2]} 36... Ra8 {[%clk 0:00:20.3]} 37. Bb6 {[%clk 0:00:54]} 37... Be8
{[%clk 0:00:20.5]} 38. Bd8 {[%clk 0:00:50.4]} 38... Kf7 {[%clk 0:00:20.7]} 39.
f4 {[%clk 0:00:50.2]} 39... Rc8 {[%clk 0:00:14.9]} 40. a6 {[%clk 0:00:45.9]}
40... Bc6 {[%clk 0:00:13.7]} 41. a7 {[%clk 0:00:45.7]} 41... Ke8 {[%clk
0:00:13.9]} 42. g4 {[%clk 0:00:43.8]} 42... Ra8 {[%clk 0:00:13.4]} 43. Bb6
{[%clk 0:00:42.5]} 43... Kd7 {[%clk 0:00:13.4]} 44. f5 {[%clk 0:00:42]} 44... d4
{[%clk 0:00:13.6]} 45. g5 {[%clk 0:00:42.3]} 45... d3 {[%clk 0:00:13.7]} 46. f6
{[%clk 0:00:41.9]} 46... gxf6 {[%clk 0:00:13.8]} 47. gxf6 {[%clk 0:00:42.8]}
47... d2 {[%clk 0:00:13.8]} 48. Rd1 {[%clk 0:00:43]} 48... Ke6 {[%clk
0:00:10.3]} 49. Rxd2 {[%clk 0:00:42.4]} 49... Rg8 {[%clk 0:00:10.6]} 50. Rf2
{[%clk 0:00:40]} 50... Kf7 {[%clk 0:00:09.7]} 51. Bd8 {[%clk 0:00:39.7]} 51...
d5 {[%clk 0:00:08.9]} 52. Rc2 {[%clk 0:00:39.6]} 52... Bb7 {[%clk 0:00:08.8]}
53. Rc7 {[%clk 0:00:39.7]} 53... Ba8 {[%clk 0:00:09]} 54. Rc8 {[%clk 0:00:40.2]}
54... Bb7 {[%clk 0:00:07.6]} 55. a8=Q {[%clk 0:00:40.6]} 55... Bxa8 {[%clk
0:00:07.6]} 56. Rxa8 {[%clk 0:00:41.5]} 56... d4 {[%clk 0:00:08]} 57. Ra4 {[%clk
0:00:40.9]} 57... d3 {[%clk 0:00:07.8]} 58. Rd4 {[%clk 0:00:41.4]} 58... Kxf6
{[%clk 0:00:07.6]} 59. e8=Q+ {[%clk 0:00:41.3]} 1-0

[Event "Early-Titled-Tuesday-Blitz-October-17-2023"]
[Site "Chess.com"]
[Date "2023.10.17"]
[Round "7"]
[White "a-z30"]
[Black "MDBIchess"]
[Result "1-0"]
[WhiteElo "2491"]
[BlackElo "2323"]
[TimeControl "180+1"]
[EndTime "9:21:25 PDT"]
[Termination "a-z30 won by checkmate"]

1. d4 {[%clk 0:03:00.9]} 1... c5 {[%clk 0:02:49.7]} 2. c3 {[%clk 0:02:59.7]}
2... d5 {[%clk 0:02:48.1]} 3. Nf3 {[%clk 0:02:57.4]} 3... Nf6 {[%clk 0:02:44.7]}
4. g3 {[%clk 0:02:55]} 4... Nbd7 {[%clk 0:02:36.8]} 5. Bg2 {[%clk 0:02:55.3]}
5... b6 {[%clk 0:02:36]} 6. O-O {[%clk 0:02:55.5]} 6... Bb7 {[%clk 0:02:36.6]}
7. Qa4 {[%clk 0:02:43.4]} 7... e6 {[%clk 0:02:33.5]} 8. Ne5 {[%clk 0:02:36.5]}
8... Be7 {[%clk 0:02:33.5]} 9. Nc6 {[%clk 0:02:31.7]} 9... Bxc6 {[%clk
0:02:32.9]} 10. Qxc6 {[%clk 0:02:32.6]} 10... O-O {[%clk 0:02:33.8]} 11. Bf4
{[%clk 0:02:17.5]} 11... Rc8 {[%clk 0:02:23.8]} 12. Qa4 {[%clk 0:02:08.9]} 12...
Nh5 {[%clk 0:02:18.9]} 13. Be3 {[%clk 0:01:58.9]} 13... Qc7 {[%clk 0:02:16.6]}
14. Na3 {[%clk 0:01:57.3]} 14... Qb7 {[%clk 0:02:09]} 15. c4 {[%clk 0:01:51.2]}
15... cxd4 {[%clk 0:02:06.2]} 16. Bxd4 {[%clk 0:01:50.9]} 16... Bf6 {[%clk
0:01:57.1]} 17. cxd5 {[%clk 0:01:48.4]} 17... exd5 {[%clk 0:01:53.6]} 18. Rad1
{[%clk 0:01:41.4]} 18... Nc5 {[%clk 0:01:37.4]} 19. Bxc5 {[%clk 0:01:38.8]}
19... Rxc5 {[%clk 0:01:31.1]} 20. b4 {[%clk 0:01:33]} 20... b5 {[%clk
0:01:13.8]} 21. Qa5 {[%clk 0:01:26.2]} 21... Bd8 {[%clk 0:01:11.3]} 22. Qxd8
{[%clk 0:01:25.3]} 22... Rxd8 {[%clk 0:01:07.8]} 23. bxc5 {[%clk 0:01:25.6]}
23... Nf6 {[%clk 0:01:06.5]} 24. e4 {[%clk 0:01:20]} 24... b4 {[%clk 0:00:54.6]}
25. Nc2 {[%clk 0:01:17.2]} 25... b3 {[%clk 0:00:48.5]} 26. axb3 {[%clk
0:01:15.3]} 26... Qxb3 {[%clk 0:00:49.4]} 27. Nd4 {[%clk 0:01:14.8]} 27... Qc4
{[%clk 0:00:26.5]} 28. Nc6 {[%clk 0:01:10.7]} 28... Re8 {[%clk 0:00:25.2]} 29.
exd5 {[%clk 0:01:02.1]} 29... Qxc5 {[%clk 0:00:24.4]} 30. d6 {[%clk 0:01:02.7]}
30... Nd7 {[%clk 0:00:20.5]} 31. Ne7+ {[%clk 0:00:47]} 31... Kh8 {[%clk
0:00:20.4]} 32. Bh3 {[%clk 0:00:47.6]} 32... Qb5 {[%clk 0:00:16.5]} 33. Rfe1
{[%clk 0:00:37.5]} 33... g6 {[%clk 0:00:08.2]} 34. Nxg6+ {[%clk 0:00:35]} 34...
Kg7 {[%clk 0:00:08.3]} 35. Rxe8 {[%clk 0:00:35.9]} 35... hxg6 {[%clk 0:00:09]}
36. Re7 {[%clk 0:00:32.7]} 36... Ne5 {[%clk 0:00:08.8]} 37. Rxe5 {[%clk
0:00:25.7]} 37... Qa4 {[%clk 0:00:03.4]} 38. Red5 {[%clk 0:00:24.4]} 38... Qe8
{[%clk 0:00:03]} 39. d7 {[%clk 0:00:23.9]} 39... Qd8 {[%clk 0:00:03.9]} 40. Rc5
{[%clk 0:00:23.8]} 40... a5 {[%clk 0:00:04.8]} 41. Rc8 {[%clk 0:00:23.4]} 41...
Qf6 {[%clk 0:00:05.7]} 42. d8=Q {[%clk 0:00:22.7]} 42... Qxd8 {[%clk 0:00:06.5]}
43. Rdxd8 {[%clk 0:00:21.2]} 43... g5 {[%clk 0:00:07.4]} 44. Rd7 {[%clk
0:00:21.6]} 44... g4 {[%clk 0:00:07.7]} 45. Rcc7 {[%clk 0:00:22.5]} 45... gxh3
{[%clk 0:00:08.6]} 46. Rxf7+ {[%clk 0:00:23.2]} 46... Kg6 {[%clk 0:00:09.5]} 47.
Rf4 {[%clk 0:00:22.3]} 47... Kg5 {[%clk 0:00:10.4]} 48. Rc5+ {[%clk 0:00:21.9]}
48... Kg6 {[%clk 0:00:11.3]} 49. Rd4 {[%clk 0:00:22.2]} 49... Kg7 {[%clk
0:00:12.2]} 50. Rd6 {[%clk 0:00:22.8]} 50... Kh7 {[%clk 0:00:13.1]} 51. Rc7+
{[%clk 0:00:23.1]} 51... Kh8 {[%clk 0:00:14]} 52. Rd8# {[%clk 0:00:23.8]} 1-0

[Event "Early-Titled-Tuesday-Blitz-October-17-2023"]
[Site "Chess.com"]
[Date "2023.10.17"]
[Round "7"]
[White "GMJustin"]
[Black "ajedrezhoy"]
[Result "0-1"]
[WhiteElo "2178"]
[BlackElo "2381"]
[TimeControl "180+1"]
[EndTime "9:21:28 PDT"]
[Termination "ajedrezhoy won on time"]

1. d4 {[%clk 0:02:52.8]} 1... c5 {[%clk 0:03:00.1]} 2. d5 {[%clk 0:02:49.9]}
2... Nf6 {[%clk 0:02:59.3]} 3. c4 {[%clk 0:02:41.9]} 3... e6 {[%clk 0:02:59.1]}
4. Nc3 {[%clk 0:02:41.3]} 4... exd5 {[%clk 0:02:58.9]} 5. cxd5 {[%clk
0:02:41.5]} 5... d6 {[%clk 0:02:59.2]} 6. Nf3 {[%clk 0:02:41.4]} 6... g6 {[%clk
0:02:59.3]} 7. Nd2 {[%clk 0:02:41.2]} 7... Bg7 {[%clk 0:02:58.5]} 8. e4 {[%clk
0:02:41.1]} 8... O-O {[%clk 0:02:57.9]} 9. Be2 {[%clk 0:02:40.8]} 9... Re8
{[%clk 0:02:57.9]} 10. O-O {[%clk 0:02:39.4]} 10... a6 {[%clk 0:02:58.1]} 11. a4
{[%clk 0:02:38.6]} 11... Nbd7 {[%clk 0:02:57.2]} 12. Re1 {[%clk 0:01:58]} 12...
Qc7 {[%clk 0:02:53.3]} 13. Bf1 {[%clk 0:01:52.8]} 13... Rb8 {[%clk 0:02:46.1]}
14. Nc4 {[%clk 0:01:35.9]} 14... b5 {[%clk 0:02:41.9]} 15. axb5 {[%clk
0:01:35.7]} 15... axb5 {[%clk 0:02:42.2]} 16. Na5 {[%clk 0:01:27.3]} 16... b4
{[%clk 0:02:40.3]} 17. Nb5 {[%clk 0:01:24.1]} 17... Rxb5 {[%clk 0:02:13.4]} 18.
Bxb5 {[%clk 0:01:23.5]} 18... Rxe4 {[%clk 0:02:10.7]} 19. Rxe4 {[%clk
0:01:21.4]} 19... Nxe4 {[%clk 0:02:10.5]} 20. Nc4 {[%clk 0:01:17.5]} 20... Ne5
{[%clk 0:02:04.4]} 21. Qe2 {[%clk 0:01:08.6]} 21... f5 {[%clk 0:01:50.2]} 22. f3
{[%clk 0:00:58.7]} 22... Nxc4 {[%clk 0:01:49.8]} 23. Bxc4 {[%clk 0:00:46.1]}
23... Bd4+ {[%clk 0:01:48.8]} 24. Kf1 {[%clk 0:00:46.1]} 24... Nf6 {[%clk
0:01:40.9]} 25. Ra8 {[%clk 0:00:45.7]} 25... Kg7 {[%clk 0:01:39.4]} 26. Rxc8
{[%clk 0:00:25.5]} 26... Qxc8 {[%clk 0:01:39]} 27. Qe7+ {[%clk 0:00:25.8]} 27...
Kg8 {[%clk 0:01:32.9]} 28. Qxd6 {[%clk 0:00:18.5]} 28... Qd7 {[%clk 0:01:21.2]}
29. Qe6+ {[%clk 0:00:08.2]} 29... Qxe6 {[%clk 0:01:20.8]} 30. dxe6 {[%clk
0:00:08.4]} 30... Kf8 {[%clk 0:01:19.3]} 31. Bf4 {[%clk 0:00:07.8]} 31... Ke7
{[%clk 0:01:18.9]} 32. Ke2 {[%clk 0:00:07.9]} 32... Bxb2 {[%clk 0:01:17.9]} 33.
Kd3 {[%clk 0:00:06.4]} 33... Ne8 {[%clk 0:01:14.1]} 34. Be3 {[%clk 0:00:06]}
34... Bd4 {[%clk 0:01:11.4]} 35. Bxd4 {[%clk 0:00:05.7]} 35... cxd4 {[%clk
0:01:11.5]} 36. Kxd4 {[%clk 0:00:05.9]} 36... Nc7 {[%clk 0:01:10.4]} 37. Ke5
{[%clk 0:00:02.8]} 37... Ne8 {[%clk 0:01:09.7]} 38. g4 {[%clk 0:00:02.6]} 38...
fxg4 {[%clk 0:01:09.1]} 39. fxg4 {[%clk 0:00:02.9]} 39... Nd6 {[%clk 0:01:09.2]}
40. Bb3 {[%clk 0:00:03.1]} 40... Nb7 {[%clk 0:01:08.3]} 41. Kd5 {[%clk 0:00:03]}
41... Nd8 {[%clk 0:01:07.3]} 42. Kc5 {[%clk 0:00:02.6]} 42... Nxe6+ {[%clk
0:01:06.9]} 43. Kxb4 {[%clk 0:00:02.9]} 43... Nd4 {[%clk 0:01:05.6]} 44. Bc4
{[%clk 0:00:03]} 44... Nf3 {[%clk 0:01:05]} 45. h3 {[%clk 0:00:03.2]} 45... Kf6
{[%clk 0:01:02.3]} 46. Kc3 {[%clk 0:00:03.1]} 46... Kg5 {[%clk 0:01:01.9]} 47.
Bg8 {[%clk 0:00:02.9]} 47... h6 {[%clk 0:01:01.4]} 48. Kd3 {[%clk 0:00:03.2]}
48... Ng1 {[%clk 0:01:00.4]} 49. Ke3 {[%clk 0:00:03]} 49... Nxh3 {[%clk
0:00:59.7]} 50. Kf3 {[%clk 0:00:03.3]} 50... Nf4 {[%clk 0:00:59.8]} 51. Bf7
{[%clk 0:00:03.3]} 51... Nd3 {[%clk 0:00:59.3]} 52. Be6 {[%clk 0:00:03.2]} 52...
Ne5+ {[%clk 0:00:59.3]} 53. Kg3 {[%clk 0:00:03.5]} 53... Kf6 {[%clk 0:00:58.4]}
54. Bc8 {[%clk 0:00:03.3]} 54... g5 {[%clk 0:00:58.5]} 55. Kh3 {[%clk
0:00:03.2]} 55... Nd3 {[%clk 0:00:58.1]} 56. Kg3 {[%clk 0:00:03.3]} 56... Ke5
{[%clk 0:00:58.2]} 57. Bd7 {[%clk 0:00:03]} 57... Nc5 {[%clk 0:00:58]} 58. Bc8
{[%clk 0:00:02.8]} 58... Ne4+ {[%clk 0:00:57.8]} 59. Kf3 {[%clk 0:00:02.6]}
59... Nd2+ {[%clk 0:00:57.8]} 60. Kg3 {[%clk 0:00:02.5]} 60... Ke4 {[%clk
0:00:56.9]} 61. Bf5+ {[%clk 0:00:02.3]} 61... Ke3 {[%clk 0:00:56.9]} 62. Bc8
{[%clk 0:00:02.3]} 62... Ne4+ {[%clk 0:00:56.9]} 63. Kh3 {[%clk 0:00:02.1]}
63... Kf4 {[%clk 0:00:57]} 0-1